[Event "IIFL Wealth 4th Mumbai GM"]
[Site "Mumbai"]
[Date "2018.12.31"]
[Round "2"]
[White "Vatsal Singhania"]
[Black "Laoussing, Mathis"]
[Result "1-0"]
[ECO "B01"]
[WhiteElo "2130"]
[BlackElo "1438"]
[Annotator "NA"]
[PlyCount "57"]
[EventDate "2018.12.30"]
[EventType "swiss"]
[EventCountry "IND"]
[SourceTitle "playchess.com"]
[Source "ChessBase"]
[SourceQuality "1"]
[TimeControl "40/5400+30:1800+30"]

1. e4 {[%emt 0:00:00]} d5 {[%emt 0:00:00]} 2. exd5 {[%emt 0:00:00]} Nf6 {[%emt 0:00:00]} 3. d4 {[%emt 0:00:00]} Nxd5 {[%emt 0:00:00]} 4. c4 {[%emt 0:00:02]} Nb6 {[%emt 0:00:07]} 5. Nf3 {[%emt 0:00:10]} Bg4 {[%emt 0:01:12]} 6. Be3 {[%emt 0:00:44]} e5 {[%emt 0:01:35]} 7. Be2 {[%emt 0:11:59]} Bb4+ {[%emt 0:04:26]} 8. Nc3 {[%emt 0:02:49]} Nc6 {[%emt 0:03:17]} 9. d5 Ne7 {[%emt 0:01:40]} 10. Nxe5 {[%emt 0:11:01]} Bxe2 {[%emt 0:03:30]} 11. Qxe2 {[%emt 0:00:14]} Bxc3+ {[%emt 0:00:12]} 12. bxc3 {[%emt 0:00:07]} O-O {[%emt 0:00:27]} 13. O-O {[%emt 0:00:08]} Nf5 {[%emt 0:04:36]} 14. Bf4 {[%emt 0:04:12]} Re8 {[%emt 0:06:34]} 15. Qd3 {[%emt 0:01:49]} g6 {[%emt 0:01:17]} 16. Rfe1 {[%emt 0:03:26]} c6 {[%emt 0:03:25]} 17. Rad1 {[%emt 0:08:12]} cxd5 {[%emt 0:03:41]} 18. cxd5 {[%emt 0:00:05]} Qxd5 {[%emt 0:02:44]} 19. Qxd5 {[%emt 0:00:19]} Nxd5 {[%emt 0:00:06]} 20. Rxd5 {[%emt 0:00:04]} f6 {[%emt 0:00:06]} 21. Nf3 {[%emt 0:00:05]} Rxe1+ {[%emt 0:01:55]} 22. Nxe1 {[%emt 0:00:11]} Re8 {[%emt 0:00:06]} 23. Kf1 {[%emt 0:00:13]} Re4 {[%emt 0:00:06]} 24. Bb8 {[%emt 0:01:33]} Ra4 {[%emt 0:00:39]} 25. Rd8+ {[%emt 0:00:07]} Kf7 {[%emt 0:00:28]} 26. Rd7+ {[%emt 0:00:03]} Ke6 {[%emt 0:00:15]} 27. Rxb7 {[%emt 0:00:04]} a6 {[%emt 0:00:29]} 28. Nd3 {[%emt 0:00:11]} Rxa2 {[%emt 0:00:34]} 29. Nf4# {[%emt 0:00:06]} 1-0

[Event "IIFL Wealth 4th Mumbai GM"]
[Site "Mumbai"]
[Date "2018.12.31"]
[Round "2"]
[White "Mahindrakar Indrajeet"]
[Black "Akash G"]
[Result "0-1"]
[ECO "B50"]
[WhiteElo "2106"]
[BlackElo "2443"]
[Annotator "NA RC"]
[PlyCount "55"]
[EventDate "2018.12.30"]
[EventType "swiss"]
[EventCountry "IND"]
[SourceTitle "playchess.com"]
[Source "ChessBase"]
[SourceQuality "1"]
[TimeControl "40/5400+30:1800+30"]

1. e4 {[%emt 0:00:15]} c5 {[%emt 0:00:00]} 2. Nf3 {[%emt 0:00:35]} d6 {[%emt 0:00:00]} 3. c3 {[%emt 0:00:20]} Nf6 {[%emt 0:00:08]} 4. h3 {[%emt 0:00:14]} Nc6 {[%emt 0:01:16]} 5. Bd3 {[%emt 0:00:17]} d5 {[%emt 0:01:03]} 6. e5 {[%emt 0:02:13]} Nd7 {[%emt 0:00:22]} 7. Bb5 {[%emt 0:00:40]} Qb6 {[%emt 0:01:41]} 8. Qe2 {[%emt 0:03:49]} c4 {[%emt 0:05:32]} 9. Ba4 {[%emt 0:02:26]} g6 {[%emt 0:03:38]} 10. O-O {[%emt 0:03:23]} Nc5 {[%emt 0:04:34]} 11. Bc2 {[%emt 0:02:23]} Bf5 {[%emt 0:00:33]} 12. Bxf5 {[%emt 0:25:58]} gxf5 {[%emt 0:00:10]} 13. d4 {[%emt 0:07:09]} cxd3 {[%emt 0:03:01]} 14. Qe3 {[%emt 0:00:49]} e6 {[%emt 0:03:56]} 15. Nbd2 {[%emt 0:00:30]} Nd7 16. Qxd3 {[%emt 0:17:30]} Ndxe5 {[%emt 0:09:04]} 17. Nxe5 {[%emt 0:05:15]} Nxe5 {[%emt 0:00:09]} 18. Qe2 {[%emt 0:00:49]} Bd6 {[%emt 0:04:44]} 19. Rd1 {[%emt 0:01:23]} Rg8 {[%emt 0:04:32]} 20. Nb3 {[%emt 0:02:27]} O-O-O {[%emt 0:04:36]} 21. Be3 {[%emt 0:01:24]} Qc7 {[%emt 0:07:20]} 22. Rd4 {[%emt 0:18:13]} Rg6 {[%emt 0:03:51]} 23. Kh1 {[%emt 0:00:48]} Rdg8 {[%emt 0:01:19]} 24. Rg1 {[%emt 0:00:34]} Nc6 {[%emt 0:01:32]} 25. g3 {[%emt 0:02:07]} f4 {[%emt 0:01:09]} 26. Rxf4 {[%emt 0:00:24]} Bxf4 {[%emt 0:00:20]} 27. Bxf4 {[%emt 0:00:02]} Qxf4 {[%emt 0:00:43]} 28. Qd1 0-1

[Event "IIFL Wealth 4th Mumbai GM"]
[Site "Mumbai"]
[Date "2018.12.31"]
[Round "2"]
[White "Kavinda, Akila"]
[Black "Praveen Kumar C"]
[Result "0-1"]
[ECO "D12"]
[WhiteElo "2092"]
[BlackElo "2233"]
[Annotator "NA"]
[PlyCount "134"]
[EventDate "2018.12.30"]
[EventType "swiss"]
[EventCountry "IND"]
[SourceTitle "playchess.com"]
[Source "ChessBase"]
[SourceQuality "1"]
[TimeControl "40/5400+30:1800+30"]

1. Nf3 {[%emt 0:00:00]} Nf6 {[%emt 0:00:00]} 2. c4 {[%emt 0:01:02]} c6 {[%emt 0:00:28]} 3. d4 {[%emt 0:03:36]} d5 {[%emt 0:00:10]} 4. e3 {[%emt 0:00:10]} Bf5 {[%emt 0:00:11]} 5. Nc3 {[%emt 0:00:52]} e6 {[%emt 0:00:11]} 6. Nh4 {[%emt 0:00:41]} Be4 {[%emt 0:00:10]} 7. f3 {[%emt 0:00:51]} Bg6 {[%emt 0:00:07]} 8. Qb3 {[%emt 0:01:10]} Qc7 {[%emt 0:00:07]} 9. Bd2 {[%emt 0:00:24]} Be7 {[%emt 0:00:22]} 10. Rc1 {[%emt 0:01:07]} dxc4 {[%emt 0:11:28]} 11. Bxc4 {[%emt 0:02:49]} Bh5 {[%emt 0:02:06]} 12. f4 {[%emt 0:24:54]} a6 {[%emt 0:19:02]} 13. O-O {[%emt 0:08:42]} Nbd7 {[%emt 0:02:10]} 14. a4 {[%emt 0:10:19]} O-O {[%emt 0:11:47]} 15. Nf3 {[%emt 0:03:07]} Bg6 {[%emt 0:06:08]} 16. Be1 {[%emt 0:16:12]} Nb6 {[%emt 0:07:26]} 17. Be2 {[%emt 0:01:05]} Nbd5 {[%emt 0:00:28]} 18. Nd1 {[%emt 0:03:46]} a5 {[%emt 0:03:35]} 19. Ne5 {[%emt 0:00:31]} Bb4 {[%emt 0:01:16]} 20. Nxg6 {[%emt 0:03:26]} hxg6 {[%emt 0:01:11]} 21. Bh4 {[%emt 0:01:12]} Qd7 {[%emt 0:04:18]} 22. Qd3 {[%emt 0:02:36]} Be7 {[%emt 0:00:58]} 23. e4 {[%emt 0:03:24]} Nb4 {[%emt 0:00:47]} 24. Qe3 {[%emt 0:00:04]} Ng4 {[%emt 0:06:41]} 25. Bxg4 {[%emt 0:00:28]} Bxh4 {[%emt 0:00:06]} 26. Nc3 {[%emt 0:01:35]} Bd8 {[%emt 0:03:10]} 27. f5 {[%emt 0:04:12]} exf5 {[%emt 0:01:58]} 28. exf5 {[%emt 0:00:15]} Bb6 {[%emt 0:00:37]} 29. Ne2 {[%emt 0:01:26]} Nd5 {[%emt 0:02:02]} 30. Qg5 {[%emt 0:02:42]} gxf5 {[%emt 0:05:20]} 31. Rxf5 {[%emt 0:01:15]} Rae8 {[%emt 0:00:28]} 32. Qh4 {[%emt 0:01:30]} Qe7 {[%emt 0:00:36]} 33. Qxe7 {[%emt 0:00:29]} Rxe7 {[%emt 0:00:05]} 34. Bf3 {[%emt 0:00:30]} g6 {[%emt 0:01:00]} 35. Rg5 {[%emt 0:00:10]} Rfe8 {[%emt 0:00:17]} 36. Kf2 {[%emt 0:00:54]} Kg7 {[%emt 0:02:31]} 37. Rc2 {[%emt 0:00:30]} Nf6 {[%emt 0:01:22]} 38. Kf1 {[%emt 0:00:28]} Ne4 {[%emt 0:00:37]} 39. Bxe4 {[%emt 0:00:13]} Rxe4 {[%emt 0:00:02]} 40. Rd2 {[%emt 0:00:00]} Rd8 {[%emt 0:00:00]} 41. Rg3 {[%emt 0:05:16]} Bxd4 {[%emt 0:05:04]} 42. Rgd3 {[%emt 0:00:47]} c5 {[%emt 0:00:19]} 43. Rb3 {[%emt 0:00:26]} Rd6 {[%emt 0:05:48]} 44. Rxb7 {[%emt 0:13:58]} Rf6+ {[%emt 0:00:29]} 45. Ke1 {[%emt 0:00:05]} Rf2 {[%emt 0:00:10]} 46. g3 {[%emt 0:03:15]} Rxh2 {[%emt 0:01:15]} 47. Kd1 {[%emt 0:00:27]} Be3 {[%emt 0:02:48]} 48. Rdd7 {[%emt 0:01:02]} Rf2 {[%emt 0:03:36]} 49. b3 {[%emt 0:05:03]} Rf5 {[%emt 0:03:05]} 50. Re7 {[%emt 0:00:00]} Bd4 {[%emt 0:00:00]} 51. Red7 {[%emt 0:01:00]} Be3 {[%emt 0:01:00]} 52. Re7 Rd5+ {[%emt 0:02:43]} 53. Ke1 {[%emt 0:02:17]} Rxe7 {[%emt 0:00:22]} 54. Rxe7 {[%emt 0:00:06]} Rd3 {[%emt 0:00:24]} 55. Rb7 {[%emt 0:01:31]} Bd2+ {[%emt 0:01:45]} 56. Kf2 {[%emt 0:00:28]} Bb4 {[%emt 0:00:05]} 57. Nf4 {[%emt 0:00:04]} Rxb3 {[%emt 0:00:14]} 58. Ne6+ {[%emt 0:00:05]} Kf6 {[%emt 0:00:31]} 59. Nd8 {[%emt 0:00:06]} c4 {[%emt 0:00:23]} 60. Rxf7+ {[%emt 0:00:29]} Ke5 {[%emt 0:00:19]} 61. Rc7 {[%emt 0:02:50]} c3 {[%emt 0:01:14]} 62. Ke2 {[%emt 0:00:29]} Rb2+ {[%emt 0:02:34]} 63. Ke3 {[%emt 0:00:54]} Rg2 {[%emt 0:00:18]} 64. Nf7+ {[%emt 0:01:58]} Kd5 {[%emt 0:01:53]} 65. Kf3 {[%emt 0:00:30]} Bc5 {[%emt 0:01:51]} 66. Kxg2 {[%emt 0:00:46]} c2 {[%emt 0:00:06]} 67. Ne5 {[%emt 0:00:28]} c1=Q {[%emt 0:00:24]} 0-1

[Event "IIFL Wealth 4th Mumbai GM"]
[Site "Mumbai"]
[Date "2018.12.31"]
[Round "2"]
[White "abzid, Rahman"]
[Black "Bhambure, Shantanu"]
[Result "0-1"]
[ECO "D30"]
[WhiteElo "2040"]
[BlackElo "2223"]
[Annotator "NA"]
[PlyCount "35"]
[EventDate "2018.12.30"]
[EventType "swiss"]
[EventCountry "IND"]
[SourceTitle "playchess.com"]
[Source "ChessBase"]
[SourceQuality "1"]
[TimeControl "40/5400+30:1800+30"]

1. d4 {[%emt 0:00:00]} d5 {[%emt 0:00:00]} 2. c4 {[%emt 0:00:06]} e6 {[%emt 0:00:00]} 3. Nf3 {[%emt 0:00:22]} c6 {[%emt 0:00:00]} 4. e3 {[%emt 0:00:16]} Nf6 {[%emt 0:00:16]} 5. Qc2 {[%emt 0:01:34]} Nbd7 {[%emt 0:00:38]} 6. Bd3 {[%emt 0:00:40]} Bd6 {[%emt 0:01:18]} 7. O-O {[%emt 0:00:31]} O-O {[%emt 0:01:06]} 8. b3 {[%emt 0:01:07]} dxc4 {[%emt 0:10:23]} 9. Bxc4 {[%emt 0:03:49]} b5 {[%emt 0:02:01]} 10. Bd3 {[%emt 0:00:40]} Bb7 {[%emt 0:00:33]} 11. a4 {[%emt 0:00:41]} bxa4 {[%emt 0:04:02]} 12. bxa4 {[%emt 0:01:19]} c5 {[%emt 0:00:36]} 13. Ba3 {[%emt 0:01:03]} Qe7 {[%emt 0:11:30]} 14. Nbd2 {[%emt 0:02:40]} cxd4 {[%emt 0:00:56]} 15. Bxd6 {[%emt 0:00:47]} Qxd6 {[%emt 0:00:15]} 16. Nxd4 {[%emt 0:01:33]} Rfc8 {[%emt 0:02:35]} 17. Qb1 Rab8 {[%emt 0:06:38]} 18. Rc1 {[%emt 0:03:29]} 0-1

[Event "IIFL Wealth 4th Mumbai GM"]
[Site "Mumbai"]
[Date "2018.12.31"]
[Round "2"]
[White "Thapa, Krishna"]
[Black "Mehdi Hasan Parag"]
[Result "0-1"]
[ECO "E06"]
[WhiteElo "2024"]
[BlackElo "2218"]
[Annotator "NA"]
[PlyCount "92"]
[EventDate "2018.12.30"]
[EventType "swiss"]
[EventCountry "IND"]
[SourceTitle "playchess.com"]
[Source "ChessBase"]
[SourceQuality "1"]
[TimeControl "40/5400+30:1800+30"]

1. d4 {[%emt 0:00:00]} Nf6 {[%emt 0:00:00]} 2. Nf3 {[%emt 0:00:00]} e6 {[%emt 0:00:00]} 3. c4 {[%emt 0:00:00]} d5 {[%emt 0:00:07]} 4. g3 {[%emt 0:00:00]} Be7 {[%emt 0:00:11]} 5. Bg2 {[%emt 0:00:00]} O-O {[%emt 0:00:08]} 6. O-O {[%emt 0:00:01]} dxc4 {[%emt 0:00:09]} 7. Qc2 {[%emt 0:00:14]} b6 {[%emt 0:00:08]} 8. Ne5 {[%emt 0:02:31]} Qxd4 {[%emt 0:00:10]} 9. Bxa8 {[%emt 0:00:06]} Qxe5 {[%emt 0:00:11]} 10. Bf3 {[%emt 0:00:07]} Nd5 {[%emt 0:00:41]} 11. Nc3 {[%emt 0:02:07]} Nc6 {[%emt 0:01:36]} 12. Nxd5 {[%emt 0:01:53]} exd5 {[%emt 0:00:30]} 13. Bf4 {[%emt 0:00:36]} Qe6 {[%emt 0:00:40]} 14. Rad1 {[%emt 0:00:24]} Nb4 {[%emt 0:02:42]} 15. Qb1 {[%emt 0:08:38]} c6 {[%emt 0:03:33]} 16. a3 {[%emt 0:00:25]} Na6 {[%emt 0:02:03]} 17. e4 {[%emt 0:00:59]} Bb7 {[%emt 0:14:35]} 18. Rfe1 {[%emt 0:07:28]} Qd7 {[%emt 0:04:35]} 19. Qc2 {[%emt 0:10:01]} Rd8 {[%emt 0:06:43]} 20. Qe2 {[%emt 0:20:46]} d4 {[%emt 0:13:42]} 21. Qxc4 {[%emt 0:02:04]} c5 {[%emt 0:01:03]} 22. Bg2 {[%emt 0:11:10]} b5 {[%emt 0:02:23]} 23. Qc2 {[%emt 0:01:30]} c4 {[%emt 0:02:13]} 24. Be5 {[%emt 0:05:29]} d3 {[%emt 0:06:34]} 25. Qd2 {[%emt 0:02:17]} Nc5 {[%emt 0:01:37]} 26. h4 {[%emt 0:01:21]} Nb3 {[%emt 0:05:52]} 27. Qf4 {[%emt 0:01:29]} a5 {[%emt 0:00:54]} 28. Kh2 {[%emt 0:02:49]} f6 {[%emt 0:01:46]} 29. Bc7 {[%emt 0:00:20]} Rc8 {[%emt 0:02:55]} 30. Bb6 {[%emt 0:00:29]} Qc6 {[%emt 0:00:52]} 31. Be3 {[%emt 0:02:36]} Rd8 {[%emt 0:00:56]} 32. Bh1 {[%emt 0:00:35]} Qd6 {[%emt 0:02:27]} 33. Qf5 {[%emt 0:01:57]} Qe5 {[%emt 0:01:53]} 34. Bb6 {[%emt 0:06:52]} Rc8 {[%emt 0:01:25]} 35. Qg4 {[%emt 0:01:17]} Bc5 {[%emt 0:04:22]} 36. Qd7 {[%emt 0:03:21]} Bxb6 {[%emt 0:04:39]} 37. Qxb7 {[%emt 0:00:02]} Rb8 {[%emt 0:00:52]} 38. Qd5+ {[%emt 0:00:55]} Kf8 {[%emt 0:01:35]} 39. f4 {[%emt 0:01:11]} Qxd5 {[%emt 0:03:03]} 40. exd5 {[%emt 0:00:00]} Rd8 {[%emt 0:00:00]} 41. a4 {[%emt 0:09:46]} bxa4 {[%emt 0:03:35]} 42. Re6 {[%emt 0:03:42]} Bd4 {[%emt 0:14:38]} 43. Rc6 {[%emt 0:06:41]} Bxb2 {[%emt 0:00:09]} 44. Rxc4 {[%emt 0:00:51]} a3 {[%emt 0:00:07]} 45. Ra4 {[%emt 0:06:10]} d2 {[%emt 0:00:06]} 46. Be4 {[%emt 0:01:53]} Nc5 {[%emt 0:01:21]} 0-1

[Event "IIFL Wealth 4th Mumbai GM"]
[Site "Mumbai"]
[Date "2018.12.31"]
[Round "2"]
[White "Trisha Kanyamarala"]
[Black "Srija, Seshadri"]
[Result "1-0"]
[ECO "D45"]
[WhiteElo "1942"]
[BlackElo "2210"]
[Annotator "NA"]
[PlyCount "59"]
[EventDate "2018.12.30"]
[EventType "swiss"]
[EventCountry "IND"]
[SourceTitle "playchess.com"]
[Source "ChessBase"]
[SourceQuality "1"]
[TimeControl "40/5400+30:1800+30"]

1. d4 {[%emt 0:00:00]} d5 {[%emt 0:00:00]} 2. c4 {[%emt 0:00:00]} e6 {[%emt 0:00:00]} 3. Nf3 {[%emt 0:00:10]} Nf6 {[%emt 0:00:04]} 4. Nc3 {[%emt 0:00:13]} c6 {[%emt 0:00:11]} 5. e3 {[%emt 0:00:10]} Nbd7 {[%emt 0:00:33]} 6. Qc2 {[%emt 0:00:12]} Bd6 {[%emt 0:00:15]} 7. Bd3 {[%emt 0:00:31]} dxc4 {[%emt 0:00:22]} 8. Bxc4 {[%emt 0:00:15]} O-O {[%emt 0:00:25]} 9. O-O {[%emt 0:00:24]} b5 {[%emt 0:00:20]} 10. Be2 {[%emt 0:04:13]} Bb7 {[%emt 0:00:43]} 11. e4 {[%emt 0:00:23]} e5 {[%emt 0:00:20]} 12. dxe5 {[%emt 0:00:17]} Nxe5 {[%emt 0:00:14]} 13. Nh4 {[%emt 0:00:52]} b4 {[%emt 0:16:29]} 14. Nf5 {[%emt 0:02:13]} bxc3 {[%emt 0:07:22]} 15. Rd1 {[%emt 0:00:08]} Ne8 {[%emt 0:00:22]} 16. Qxc3 {[%emt 0:00:09]} Qf6 {[%emt 0:13:22]} 17. f4 {[%emt 0:01:45]} Bc7 {[%emt 0:00:55]} 18. fxe5 {[%emt 0:00:35]} Bxe5 {[%emt 0:00:30]} 19. Qb4 {[%emt 0:00:19]} Nc7 {[%emt 0:05:25]} 20. Qxb7 {[%emt 0:02:31]} Rfb8 {[%emt 0:00:38]} 21. Qxc6 {[%emt 0:01:17]} Ne6 {[%emt 0:04:30]} 22. Be3 {[%emt 0:05:34]} Nf4 {[%emt 0:11:38]} 23. Bxf4 {[%emt 0:02:53]} Bxf4 {[%emt 0:00:13]} 24. Qxf6 {[%emt 0:00:06]} gxf6 {[%emt 0:00:02]} 25. Rab1 {[%emt 0:00:38]} Kf8 {[%emt 0:01:21]} 26. Bc4 {[%emt 0:00:30]} Rc8 {[%emt 0:00:25]} 27. b3 {[%emt 0:00:21]} Rab8 {[%emt 0:00:15]} 28. g3 {[%emt 0:02:25]} Be5 {[%emt 0:00:09]} 29. Rbc1 {[%emt 0:01:11]} Rc7 {[%emt 0:00:32]} 30. Rd3 {[%emt 0:01:18]} 1-0

[Event "IIFL Wealth 4th Mumbai GM"]
[Site "Mumbai"]
[Date "2018.12.31"]
[Round "2"]
[White "Nepal, Prakash"]
[Black "Raghunandan, Kaumandur Srihari"]
[Result "0-1"]
[ECO "E81"]
[WhiteElo "1902"]
[BlackElo "2378"]
[Annotator "NA"]
[PlyCount "63"]
[EventDate "2018.12.30"]
[EventType "swiss"]
[EventCountry "IND"]
[SourceTitle "playchess.com"]
[Source "ChessBase"]
[SourceQuality "1"]
[TimeControl "40/5400+30:1800+30"]

1. d4 Nf6 2. c4 g6 3. Nc3 Bg7 4. e4 d6 5. f3 O-O 6. Be3 c5 7. Nge2 Nc6 8. d5 Ne5 9. Ng3 h5 10. Be2 h4 11. Nf1 e6 12. f4 Nxc4 13. Bxc4 b5 14. Bd3 b4 15. Ne2 exd5 {[%emt 0:31:20]} 16. exd5 {[%emt 0:32:27]} Re8 17. Qd2 Nxd5 18. Bb5 Bb7 19. Bxe8 Qxe8 20. Kf2 Nf6 {[%emt 0:41:45]} 21. Kg1 Qc6 22. Neg3 hxg3 23. hxg3 Re8 24. Rh4 Nd5 25. Re1 Nxe3 26. Nxe3 Bd4 27. Rh2 Qe4 28. Kf2 c4 29. Qe2 c3 30. bxc3 bxc3 31. a3 c2 32. Ra1 0-1

[Event "IIFL Wealth 4th Mumbai GM"]
[Site "Mumbai"]
[Date "2018.12.31"]
[Round "2"]
[White "Larmet, Nino"]
[Black "Banerjee, Sushant"]
[Result "0-1"]
[ECO "B01"]
[WhiteElo "1835"]
[BlackElo "2198"]
[Annotator "NA"]
[PlyCount "116"]
[EventDate "2018.12.30"]
[EventType "swiss"]
[EventCountry "IND"]
[SourceTitle "playchess.com"]
[Source "ChessBase"]
[SourceQuality "1"]
[TimeControl "40/5400+30:1800+30"]

1. e4 {[%emt 0:00:24]} d5 {[%emt 0:00:00]} 2. exd5 {[%emt 0:00:58]} Nf6 {[%emt 0:00:00]} 3. d4 {[%emt 0:03:21]} Bg4 {[%emt 0:00:10]} 4. Be2 {[%emt 0:01:09]} Bxe2 {[%emt 0:00:25]} 5. Nxe2 {[%emt 0:00:07]} Qxd5 {[%emt 0:00:27]} 6. Nf4 {[%emt 0:03:06]} Qf5 {[%emt 0:09:04]} 7. Qd3 {[%emt 0:02:25]} Qxd3 {[%emt 0:00:12]} 8. Nxd3 {[%emt 0:00:15]} Nc6 {[%emt 0:00:18]} 9. c3 {[%emt 0:00:15]} O-O-O {[%emt 0:02:12]} 10. Bf4 {[%emt 0:01:07]} Nh5 {[%emt 0:02:29]} 11. Bg3 {[%emt 0:04:23]} f6 {[%emt 0:04:05]} 12. f4 {[%emt 0:01:15]} e5 {[%emt 0:14:39]} 13. fxe5 {[%emt 0:03:40]} Nxg3 {[%emt 0:00:15]} 14. hxg3 {[%emt 0:00:06]} fxe5 {[%emt 0:00:32]} 15. Nxe5 {[%emt 0:01:32]} Re8 {[%emt 0:02:57]} 16. Kd1 {[%emt 0:01:24]} Nxe5 {[%emt 0:02:28]} 17. dxe5 {[%emt 0:00:02]} Rxe5 {[%emt 0:01:04]} 18. Nd2 {[%emt 0:00:19]} Bd6 {[%emt 0:01:31]} 19. Nf3 {[%emt 0:05:56]} Rd5+ {[%emt 0:01:01]} 20. Kc2 {[%emt 0:01:17]} Bxg3 {[%emt 0:00:13]} 21. Rad1 {[%emt 0:00:42]} Rxd1 {[%emt 0:00:55]} 22. Rxd1 {[%emt 0:00:10]} Re8 {[%emt 0:02:45]} 23. b3 {[%emt 0:04:41]} Re2+ {[%emt 0:03:23]} 24. Rd2 {[%emt 0:00:05]} Rxd2+ {[%emt 0:00:36]} 25. Kxd2 {[%emt 0:00:24]} Kd7 {[%emt 0:01:49]} 26. Ke3 {[%emt 0:00:51]} Ke6 {[%emt 0:00:54]} 27. Ng5+ {[%emt 0:06:37]} Kf5 {[%emt 0:00:53]} 28. Ne4 {[%emt 0:00:59]} Kg4 29. c4 {[%emt 0:04:30]} Bf4+ {[%emt 0:10:27]} 30. Kf2 {[%emt 0:00:43]} Be5 {[%emt 0:00:56]} 31. g3 {[%emt 0:04:45]} h5 {[%emt 0:06:47]} 32. Kg2 {[%emt 0:02:41]} Bd4 {[%emt 0:00:38]} 33. Nd2 {[%emt 0:04:08]} g5 {[%emt 0:01:49]} 34. Nf3 {[%emt 0:00:48]} Bf6 {[%emt 0:00:31]} 35. Nh2+ {[%emt 0:00:33]} Kf5 {[%emt 0:00:07]} 36. Kf3 {[%emt 0:00:55]} g4+ {[%emt 0:00:30]} 37. Ke3 {[%emt 0:02:34]} c5 {[%emt 0:03:00]} 38. Nf1 {[%emt 0:01:59]} h4 {[%emt 0:03:11]} 39. Ke2 {[%emt 0:05:49]} hxg3 {[%emt 0:05:02]} 40. Ne3+ {[%emt 0:00:00]} Ke4 {[%emt 0:00:00]} 41. Ng2 {[%emt 0:01:39]} Bg5 {[%emt 0:03:03]} 42. Ne1 {[%emt 0:03:20]} Kd4 {[%emt 0:00:20]} 43. Ng2 {[%emt 0:01:47]} Kc3 {[%emt 0:00:35]} 44. Ne1 {[%emt 0:00:35]} b6 {[%emt 0:01:16]} 45. Ng2 {[%emt 0:03:40]} a5 {[%emt 0:05:15]} 46. Ne1 {[%emt 0:00:28]} a4 {[%emt 0:00:15]} 47. Ng2 {[%emt 0:00:38]} Bf6 {[%emt 0:05:08]} 48. Ne3 {[%emt 0:01:24]} Bd4 {[%emt 0:00:20]} 49. Ng2 {[%emt 0:01:00]} Bf2 {[%emt 0:00:39]} 50. Nf4 {[%emt 0:01:07]} Bg1 {[%emt 0:05:22]} 51. Ng2 {[%emt 0:00:45]} axb3 {[%emt 0:02:59]} 52. axb3 {[%emt 0:00:15]} Kxb3 {[%emt 0:00:04]} 53. Kd3 {[%emt 0:00:20]} b5 {[%emt 0:01:47]} 54. cxb5 {[%emt 0:02:07]} c4+ {[%emt 0:00:04]} 55. Ke2 {[%emt 0:11:00]} c3 {[%emt 0:00:23]} 56. Ne1 {[%emt 0:08:11]} g2 {[%emt 0:00:35]} 57. Kd1 {[%emt 0:02:30]} Bc5 {[%emt 0:01:00]} 58. Nxg2 {[%emt 0:00:19]} c2+ 0-1

[Event "IIFL Wealth 4th Mumbai GM"]
[Site "Mumbai"]
[Date "2018.12.31"]
[Round "2"]
[White "Kishor, Shazzad"]
[Black "Phadke Sohan"]
[Result "0-1"]
[ECO "A00"]
[WhiteElo "1730"]
[BlackElo "2191"]
[Annotator "NA"]
[PlyCount "110"]
[EventDate "2018.12.30"]
[EventType "swiss"]
[EventCountry "IND"]
[SourceTitle "playchess.com"]
[Source "ChessBase"]
[SourceQuality "1"]
[TimeControl "40/5400+30:1800+30"]

1. g3 {[%emt 0:00:00]} e6 {[%emt 0:00:00]} 2. c4 {[%emt 0:00:00]} f5 {[%emt 0:00:00]} 3. Bg2 {[%emt 0:00:07]} Nf6 {[%emt 0:00:00]} 4. Nf3 {[%emt 0:01:08]} Be7 {[%emt 0:01:20]} 5. Nc3 {[%emt 0:00:06]} d6 {[%emt 0:00:05]} 6. d4 {[%emt 0:00:25]} O-O {[%emt 0:00:06]} 7. O-O {[%emt 0:00:26]} a5 {[%emt 0:00:13]} 8. b3 {[%emt 0:00:45]} Ne4 {[%emt 0:01:06]} 9. Bb2 {[%emt 0:00:31]} Bf6 {[%emt 0:00:24]} 10. e3 {[%emt 0:00:45]} Nc6 {[%emt 0:01:03]} 11. Rc1 {[%emt 0:02:17]} Qe8 {[%emt 0:10:16]} 12. d5 {[%emt 0:08:29]} Nb4 {[%emt 0:01:17]} 13. Nd4 {[%emt 0:09:12]} Nxc3 {[%emt 0:02:35]} 14. Bxc3 {[%emt 0:01:43]} Nxa2 {[%emt 0:00:58]} 15. Rc2 {[%emt 0:00:06]} Nxc3 {[%emt 0:00:09]} 16. Rxc3 {[%emt 0:00:02]} e5 {[%emt 0:02:29]} 17. Nb5 {[%emt 0:00:19]} Bd8 {[%emt 0:21:57]} 18. Rd3 {[%emt 0:02:23]} Bd7 {[%emt 0:02:00]} 19. Nc3 {[%emt 0:00:25]} Bf6 {[%emt 0:02:18]} 20. e4 {[%emt 0:01:47]} f4 {[%emt 0:00:19]} 21. g4 {[%emt 0:02:28]} Qg6 {[%emt 0:04:47]} 22. f3 {[%emt 0:01:30]} h5 {[%emt 0:01:32]} 23. h3 {[%emt 0:00:47]} Bh4 {[%emt 0:00:17]} 24. Nb5 {[%emt 0:01:36]} Bxb5 {[%emt 0:06:39]} 25. cxb5 {[%emt 0:01:38]} Qe8 {[%emt 0:00:05]} 26. gxh5 {[%emt 0:03:25]} Qxb5 {[%emt 0:03:23]} 27. Rc3 {[%emt 0:00:53]} Qb6+ {[%emt 0:16:34]} 28. Kh1 {[%emt 0:00:04]} Bf2 {[%emt 0:00:05]} 29. Qc2 {[%emt 0:03:56]} Bc5 {[%emt 0:01:07]} 30. Rd1 {[%emt 0:00:26]} Qb5 {[%emt 0:00:13]} 31. Bf1 {[%emt 0:01:19]} Qe8 {[%emt 0:00:02]} 32. Qg2 {[%emt 0:00:37]} Qxh5 {[%emt 0:00:46]} 33. Qg4 {[%emt 0:00:07]} Qh6 {[%emt 0:00:25]} 34. Rc2 {[%emt 0:00:21]} Rf6 {[%emt 0:01:18]} 35. Rg2 {[%emt 0:00:26]} Raf8 {[%emt 0:01:56]} 36. Bb5 {[%emt 0:00:39]} Rg6 {[%emt 0:07:07]} 37. Qxg6 {[%emt 0:10:36]} Qxh3+ {[%emt 0:01:49]} 38. Rh2 {[%emt 0:00:24]} Qxf3+ {[%emt 0:00:04]} 39. Rg2 {[%emt 0:00:19]} Qxd1+ {[%emt 0:00:04]} 40. Kh2 {[%emt 0:00:00]} Rf7 {[%emt 0:00:00]} 41. Be8 {[%emt 0:00:38]} Re7 {[%emt 0:00:21]} 42. Bd7 {[%emt 0:08:14]} Rxd7 {[%emt 0:04:24]} 43. Qe8+ {[%emt 0:00:09]} Kh7 {[%emt 0:00:05]} 44. Qxd7 {[%emt 0:00:11]} Qh5+ {[%emt 0:00:05]} 45. Qh3 {[%emt 0:00:11]} Qxh3+ {[%emt 0:03:47]} 46. Kxh3 {[%emt 0:00:02]} f3 {[%emt 0:00:15]} 47. Rh2 {[%emt 0:04:03]} f2 {[%emt 0:00:45]} 48. Kg2+ {[%emt 0:00:06]} Kg6 {[%emt 0:01:26]} 49. Rh8 {[%emt 0:00:15]} Kg5 {[%emt 0:00:05]} 50. Rf8 {[%emt 0:03:28]} b5 {[%emt 0:01:50]} 51. Rf7 {[%emt 0:00:37]} a4 {[%emt 0:00:13]} 52. bxa4 {[%emt 0:00:22]} bxa4 {[%emt 0:00:04]} 53. Rxg7+ {[%emt 0:01:43]} Kf4 {[%emt 0:00:09]} 54. Rxc7 {[%emt 0:00:14]} a3 {[%emt 0:00:03]} 55. Rc6 {[%emt 0:03:56]} Kxe4 {[%emt 0:00:34]} 0-1